Cogmind - Beta 9.6 @@@ ROGUE MODE // 2020.05.20 @ 23:31:40 Player: RNGesus Result: Destroyed by G-47 Trooper with Particle Gun Performance ------------- Evolutions (2) 1000 Regions Visited (5) 1000 Robots Destroyed (96) 480 Value Destroyed (1855) 1855 Prototype IDs (2) 40 Alien Tech Used (0) 0 Bonus (195) 195 TOTAL SCORE: 4570 Bonus ------- High Alert Combat Kills 23 Follower Combat Kills 251 Friendly Fire -79 Cogmind --------- Core Integrity 0/550 Matter 94/300 Energy 18/100 System Corruption 0% Temperature Cool (77) Movement Core (350) Ox6 Location -8/Materials Parts ------- > --- POWER (1) -------- (None) > --- PROPULSION (2) --- (None) > --- UTILITY (6) ------ Coolant Injector Large Storage Unit Signal Interpreter Improved Targeting Computer > --- WEAPON (2) ------- Heavy Laser > --- INVENTORY (10) --- Improved Flight Unit Improved Flight Unit Improved Flight Unit Medium Storage Unit Large Storage Unit Hacking Suite Hacking Suite Katana Peak State ------------ > --- POWER ------------ Light Nuclear Core > --- PROPULSION ------- Aluminum Leg Aluminum Leg > --- UTILITY ---------- Coolant Injector Large Storage Unit Large Storage Unit Signal Interpreter Improved Targeting Computer Layered Light Armor Plating > --- WEAPON ----------- Gatling Laser Gauss Rifle > --- INVENTORY -------- Aluminum Leg Aluminum Leg Improved Flight Unit Improved Flight Unit Improved Flight Unit Medium Storage Unit Hacking Suite Hacking Suite Pulse Rifle Heavy Laser Heavy Laser Heavy Assault Rifle Autogun EMP Blaster Grenade Launcher Katana [Rating: 29] Favorites ----------- Power Light Ion Engine Engine Light Ion Engine Power Core Light Nuclear Core Propulsion Aluminum Leg Leg Aluminum Leg Utility Large Storage Unit Device Coolant Injector Storage Large Storage Unit Processor Signal Interpreter Protection Layered Light Armor Plating Weapon Improved Assault Rifle Energy Gun Small Laser Ballistic Gun Improved Assault Rifle Launcher EMP Blaster Build | -11 -10 -10 -9 -9 -8 ------- Run | Scr Mat Min Mat Min Mat Slots Evolved 4 | . . . 2 . 2 Power . | . . . . . . Propulsion . | . . . . . . Utility 4 | . . . 2 . 2 Weapon . | . . . . . . Parts Attached 68 | 6 8 4 16 11 23 Power 7 | 1 1 . 1 2 2 Engine 3 | 1 1 . 1 . . Core 4 | . . . . 2 2 Reactor . | . . . . . . Propulsion 20 | 2 3 2 5 4 4 Treads . | . . . . . . Leg 20 | 2 3 2 5 4 4 Wheel . | . . . . . . Hover . | . . . . . . Flight . | . . . . . . Utility 13 | 1 2 . 6 2 2 Device 2 | . . . 1 . 1 Storage 3 | 1 2 . . . . Processor 3 | . . . 1 1 1 Hackware . | . . . . . . Protection 5 | . . . 4 1 . Artifact . | . . . . . . Weapon 28 | 2 2 2 4 3 15 Energy Gun 8 | 1 1 1 . 1 4 Energy Cannon . | . . . . . . Ballistic Gun 14 | 1 1 1 4 1 6 Ballistic Cannon . | . . . . . . Launcher 6 | . . . . 1 5 Special Weapon . | . . . . . . Impact Weapon . | . . . . . . Slashing Weapon . | . . . . . . Piercing Weapon . | . . . . . . Special Melee Weapon . | . . . . . . Unidentified Prototypes 1 | . . . 1 . . Parts Lost 35 | . 5 4 2 7 17 Power 7 | . 1 1 . 2 3 Propulsion 8 | . 1 1 . 2 4 Utility 5 | . . . 2 2 1 Weapon 15 | . 3 2 . 1 9 Highest Loss Streak 14 | . 2 3 1 5 14 Average Slot Usage (%) 90 | . 87 84 94 94 92 Engine 5 | . 12 6 7 . . Core 2 | . . . . 9 7 Leg 23 | . 28 28 22 21 16 Device 2 | . . . 3 . 8 Storage 22 | . 22 28 22 22 17 Processor 6 | . . . 6 9 17 Protection 5 | . . . 11 9 7 Energy Gun 6 | . 10 13 . 8 2 Ballistic Gun 14 | . 13 7 20 11 14 Naked Turns . | . . . . . . Heaviest Build 51 | 10 38 37 51 49 50 Greatest Support 20 | 20 20 20 20 20 20 Greatest Overweight (x) 6 | 3 1 3 2 4 6 Average Overweight (x) 1 | 1 . 1 1 1 2 Largest Inventory Capacity 16 | 6 16 16 16 16 16 Average Capacity 15 | 5 12 16 16 16 15 Most Carried 16 | 2 7 10 16 16 16 Average Carried 10 | 1 4 8 13 15 13 Final Capacity 16 | 6 16 16 16 16 10 Final Carried 16 | 2 7 10 16 16 8 Class Distribution -------------------- 68% | Mutant 31% | Scavenger-Mutant Dominant Class ---------------- Mutant | -10/Materials Mutant | -10/Mines Mutant | -9/Materials Mutant | -9/Mines Mutant | -8/Materials Resources | -11 -10 -10 -9 -9 -8 ----------- Run | Scr Mat Min Mat Min Mat Matter Collected 1508 | 225 183 55 594 187 264 Remotely . | . . . . . . Salvage Created 2799 | . 560 187 975 293 784 Parts 194 | . 36 12 89 12 45 Haulers Intercepted 5 | . 2 . 1 . 2 Recyclers Shooed 4 | . 1 1 . . 2 Parts Field Recycled . | . . . . . . Retrieved Matter . | . . . . . . Parts Self-Destructed . | . . . . . . Prevented . | . . . . . . Kills | -11 -10 -10 -9 -9 -8 ------- Run | Scr Mat Min Mat Min Mat Combat Hostiles Destroyed 66 | . 12 3 21 9 21 Guns 50 | . 12 3 21 5 9 AOE 16 | . . . . 4 12 Classes Destroyed 13 | . 5 1 5 1 1 Worker 11 | . 2 2 5 1 1 Builder 3 | . . . 2 . 1 Tunneler 1 | . . . 1 . . Hauler 5 | . 2 . 1 . 2 Recycler 2 | . . . 1 . 1 Operator 4 | . 1 . 2 . 1 Watcher 4 | . . . 3 . 1 Swarmer 26 | . 3 . 12 . 11 Grunt 28 | . 9 2 6 3 8 Duelist 1 | . . . 1 . . Sentry 4 | . . 1 2 . 1 Hunter 1 | . . . . . 1 Assembled 6 | . . . . 6 . Best Kill Streak 12 | . 6 2 9 6 12 Combat Bots Only 9 | . 3 2 5 6 9 Max Kills in Single Turn 3 | . 1 1 2 2 3 Gunslinging 1 | . . . 1 . . Exploded 2 | . . . . 2 2 Melee . | . . . . . . Uniques/NPCs Destroyed . | . . . . . . Combat | -11 -10 -10 -9 -9 -8 -------- Run | Scr Mat Min Mat Min Mat Damage Taken 4487 | . 695 411 702 733 1946 Core 987 | . 53 76 144 164 550 Absorbed by Shields . | . . . . . . Core Remaining (%) 57 | 100 . 48 . 23 . Volleys Fired 246 | . 73 17 74 22 60 Largest 2 | . 2 2 2 2 2 Hottest 108 | . 70 80 46 78 108 Shots Fired 419 | . 122 26 148 33 90 Gun 403 | . 122 26 148 29 78 Cannon . | . . . . . . Launcher 16 | . . . . 4 12 Special . | . . . . . . Kinetic 328 | . 88 10 148 19 63 Thermal 65 | . 34 16 . . 15 Explosive 8 | . . . . . 8 Electromagnetic 18 | . . . . 14 4 Robot Hit Streak 15 | . 15 8 13 10 9 Robot Miss Streak 8 | . 4 2 8 3 3 Penetration Max 1 | . . . . . 1 Secondary Targets 7 | . 2 . 4 . 1 Max Gunslinging Chain 1 | . 1 . 1 . 1 Shots Hit Robots 270 | . 84 20 89 22 55 Core Hits 161 | . 39 9 46 19 48 Critical Hits 2 | . 1 . 1 . . Critical Kills . | . . . . . . Critical Parts Destroyed 2 | . 1 . 1 . . Melee Attacks . | . . . . . . Impact . | . . . . . . Slashing . | . . . . . . Piercing . | . . . . . . Sneak Attacks . | . . . . . . Combat Hostiles . | . . . . . . Follow-up Attacks . | . . . . . . Damage Inflicted 5050 | . 789 269 1423 555 2014 Guns 3591 | . 789 269 1423 266 844 Cannons . | . . . . . . Explosions 1459 | . . . . 289 1170 Melee . | . . . . . . Ramming . | . . . . . . Kinetic 2811 | . 465 141 1423 182 600 Thermal 779 | . 324 128 . . 327 Explosive 863 | . . . . . 863 Electromagnetic 597 | . . . . 373 224 Impact . | . . . . . . Slashing . | . . . . . . Piercing . | . . . . . . Highest Corruption 6 | . 2 2 . 6 . Average Corruption 3 | . 2 2 . 5 . Corruption Purged . | . . . . . . Effects 32 | . 4 8 . 20 . Message Errors 8 | . 1 3 . 4 . Matter Fused 7 | . . . . 7 . Heat Flow Errors 2 | . . . . 2 . Energy Discharges 6 | . 1 4 . 1 . Data Loss (minor) 3 | . 1 1 . 1 . Targeting Errors 3 | . 1 . . 2 . Weapon Failures 3 | . . . . 3 . Overload Shots . | . . . . . . Overflow Damage 91 | . . . . 13 78 Projectiles . | . . . . . . Explosions 91 | . . . . 13 78 Melee . | . . . . . . Knockbacks . | . . . . . . Impact . | . . . . . . Kinetic . | . . . . . . Secondary . | . . . . . . Self-Inflicted Damage 73 | . . . . 55 18 Shots 6 | . . . . 4 2 Rammed . | . . . . . . Targets Rammed . | . . . . . . Kicked . | . . . . . . Crushed . | . . . . . . Highest Temperature 280 | . 220 54 7 280 127 Average Temperature 63 | . 61 13 3 140 24 Received Heat Transfer 1551 | . 336 144 147 159 765 Effects 2 | . . . . 2 . Energy Bleed 1 | . . . . 1 . Interference 1 | . . . . 1 . Siege Activations . | . . . . . . Robots Corrupted . | . . . . . . Combat Hostiles . | . . . . . . Parts Fried . | . . . . . . Impact Corruptions . | . . . . . . Robots Melted . | . . . . . . Combat Hostiles . | . . . . . . Parts Melted 3 | . 1 . . . 2 Heat Transferred 1896 | . 939 300 . . 657 Parts Sabotaged . | . . . . . . Parts Stolen . | . . . . . . Parts Stripped . | . . . . . . Power Chain Reactions 1 | . . . . . 1 Missiles Intercepted . | . . . . . . Alert | -11 -10 -10 -9 -9 -8 ------- Run | Scr Mat Min Mat Min Mat Peak Influence 542 | . 257 104 542 216 293 Average Influence 152 | . 105 51 297 138 101 Maximum Alert Level 2 | . 1 . 2 1 1 Low Security (%) 71 | 100 82 100 26 86 85 Level 1 22 | . 17 . 52 13 14 Level 2 6 | . . . 20 . . Level 3 . | . . . . . . Level 4 . | . . . . . . Level 5 . | . . . . . . High Security . | . . . . . . Max Security . | . . . . . . Squads Dispatched 8 | . 1 . 3 . 4 Investigation 2 | . . . 1 . 1 Extermination . | . . . . . . Reinforcement 5 | . 1 . 2 . 2 Assault . | . . . . . . Garrison 1 | . . . . . 1 Intercept . | . . . . . . Construction Impeded 1 | . . . . . 1 Haulers Reinforced . | . . . . . . Stealth | -11 -10 -10 -9 -9 -8 --------- Run | Scr Mat Min Mat Min Mat Distress Signals 9 | . 1 . 3 1 4 Communications Jammed . | . . . . . . Distress Signals . | . . . . . . Times Spotted 115 | . 23 6 48 9 29 Peak Tracking Total 8 | . 5 5 7 6 8 Tactical Retreats 5 | . 2 . 1 . 2 Traps | -11 -10 -10 -9 -9 -8 ------- Run | Scr Mat Min Mat Min Mat Traps Triggered 3 | . 1 . 2 . . Indirectly . | . . . . . . Trap Hack Attempts . | . . . . . . Triggered . | . . . . . . Disarmed . | . . . . . . Reprogrammed . | . . . . . . Reused . | . . . . . . Traps Extracted . | . . . . . . Installed . | . . . . . . Triggered . | . . . . . . Machines | -11 -10 -10 -9 -9 -8 ---------- Run | Scr Mat Min Mat Min Mat Machines Disabled 1 | . . . 1 . . Max in Single Turn . | . . . . . . Machines Sabotaged . | . . . . . . Garrisons Compromised . | . . . . . . Overloaded Fab Kills . | . . . . . . Fab Network Shutdowns . | . . . . . . Hacking | -11 -10 -10 -9 -9 -8 --------- Run | Scr Mat Min Mat Min Mat Machines Accessed 10 | . 2 . 6 1 1 Terminals 8 | . 2 . 5 . 1 Fabricators . | . . . . . . Repair Stations . | . . . . . . Recycling Units . | . . . . . . Scanalyzers 1 | . . . 1 . . Garrison Access . | . . . . . . Total Hacks 29 | . 9 . 14 1 5 Successful 12 | . 2 . 6 1 3 Failed 17 | . 7 . 8 . 2 Catastrophic . | . . . . . . Database Lockouts . | . . . . . . Manual 20 | . 3 . 12 . 5 Terminals 27 | . 9 . 13 . 5 Fabricators . | . . . . . . Repair Stations . | . . . . . . Recycling Units . | . . . . . . Scanalyzers 1 | . . . 1 . . Garrison Access . | . . . . . . Terminal Hacks 7 | . 1 . 3 1 2 Part Schematic 1 | . . . . . 1 Open Door 1 | . . . . 1 . Branch Access Points 3 | . 1 . 1 . 1 Hauler Manifests 2 | . . . 2 . . Fabricator Hacks . | . . . . . . Repair Station Hacks . | . . . . . . Recycling Unit Hacks . | . . . . . . Scanalyzer 1 | . . . 1 . . Insert Component 1 | . . . 1 . . Garrison Access Hacks . | . . . . . . Unauthorized Hacks 4 | . 1 . 2 . 1 Terminals 4 | . 1 . 2 . 1 Operators 4 | . 1 . 2 . 1 Fabricators . | . . . . . . Repair Stations . | . . . . . . Recycling Units . | . . . . . . Scanalyzers . | . . . . . . Garrison Access . | . . . . . . Data Cores Recovered . | . . . . . . Used . | . . . . . . Hacking Detections 8 | . 2 . 5 . 1 Full Trace Events 2 | . . . 1 . 1 Feedback Events . | . . . . . . Feedback Blocked . | . . . . . . Robot Schematics Acquired . | . . . . . . Robots Built . | . . . . . . Matter . | . . . . . . Time . | . . . . . . Total Robot Build Rating . | . . . . . . Part Schematics Acquired 1 | . . . . . 1 Parts Built . | . . . . . . Matter . | . . . . . . Time . | . . . . . . Total Part Build Rating . | . . . . . . Parts Repaired . | . . . . . . Time . | . . . . . . Parts Recycled . | . . . . . . Recycled Matter . | . . . . . . Retrieved Matter . | . . . . . . Retrieved Components . | . . . . . . Parts Scanalyzed . | . . . . . . Part Schematics Acquired . | . . . . . . Parts Damaged . | . . . . . . Bothacking | -11 -10 -10 -9 -9 -8 ------------ Run | Scr Mat Min Mat Min Mat Used RIF Installer . | . . . . . . Robots Hacked . | . . . . . . Non-combat . | . . . . . . Combat . | . . . . . . Robot Hacks Applied . | . . . . . . Relay Couplers Released . | . . . . . . Robots Rewired . | . . . . . . Allies Hacked . | . . . . . . Hacks Repelled . | . . . . . . Allies | -11 -10 -10 -9 -9 -8 -------- Run | Scr Mat Min Mat Min Mat Total Allies 5 | . . 5 . . . Largest Group 5 | . . 5 5 . . Highest-Rated Group 79 | . . 79 79 . . Highest-Rated Ally 31 | . . 31 31 . . Total Orders . | . . . . . . Ally Attacks 51 | . . . 51 . . Total Damage 622 | . . . 622 . . Kills 11 | . . . 11 . . Allies Corrupted . | . . . . . . Allies Melted . | . . . . . . Intel | -11 -10 -10 -9 -9 -8 ------- Run | Scr Mat Min Mat Min Mat Robot Analysis Total . | . . . . . . Derelict Logs Recovered 1 | . . 1 . . . Drone Launches . | . . . . . . Drone Recoveries . | . . . . . . Exploration | -11 -10 -10 -9 -9 -8 ------------- Run | Scr Mat Min Mat Min Mat Turns Passed 4050 | 77 713 822 1183 502 753 Spaces Moved 1986 | 51 362 501 530 240 302 Core 32 | 29 . . . . 3 Treads . | . . . . . . Legs 1954 | 22 362 501 530 240 299 Wheels . | . . . . . . Hover . | . . . . . . Flight . | . . . . . . Fastest Speed 50 | 50 120 150 150 150 180 Average Speed 161 | 131 136 150 172 178 181 Slowest Speed 350 | 200 150 210 180 240 350 Overloaded Moves . | . . . . . . Propulsion Burnouts . | . . . . . . Robots Hopped . | . . . . . . Cave-ins Triggered . | . . . . . . Exploration Rate (%) 52 | 4 69 97 58 56 31 Regions Visited 5 Branch Regions 2 Pre-discovered Areas 1 | . . 1 . . . Known Exits Taken 3 | . 1 . 1 1 . Unknown Exits Taken 2 | 1 . 1 . . . Scrap Searched 3 | . . 2 . 1 . Spaces Dug . | . . . . . . Terrain Destroyed 39 | . . . . . 39 Melee . | . . . . . . Projectile 2 | . . . . . 2 AOE 37 | . . . . . 37 Actions | -11 -10 -10 -9 -9 -8 --------- Run | Scr Mat Min Mat Min Mat Total 2419 | 58 474 544 649 275 419 Wait 80 | . 25 17 12 1 25 Move 1981 | 50 361 500 529 239 302 Hop . | . . . . . . Pick Up 30 | 2 6 4 12 2 4 Fast Attach 22 | 6 2 3 4 4 3 Attach 24 | . 3 . 7 3 11 Detach 1 | . . . . . 1 Swap 22 | . 3 1 5 4 9 Drop 13 | . 1 2 6 . 4 Fire 246 | . 73 17 74 22 60 Melee . | . . . . . . Ram . | . . . . . . Kick . | . . . . . . Crush . | . . . . . . Escape Stasis . | . . . . . . Rewire . | . . . . . . Trap . | . . . . . . Miscellaneous . | . . . . . . Route ------- -11/Scrapyard -10/Materials (discovered 3 exits: *Mat x2 / *Min) -10/Mines (discovered 2 exits: *Mat x2) -9/Materials (discovered 2 exits: *Mat / *Min) -9/Mines (discovered 2 exits: *Mat / [*Exi]) -8/Materials (discovered 3 exits: [*Fac] / *Sto x2) History --------- Turn | Location | Event 19 | -11/Scrapyard | Discovered new exit (range 15) 78 | -11/Scrapyard | Entered Materials 106 | -10/Materials | Identified exit to Mines 307 | -10/Materials | Build established: Mutant 641 | -10/Materials | Discovered new exit (range 14) 732 | -10/Materials | Discovered new exit (range 13) 791 | -10/Materials | Entered Mines 1042 | -10/Mines | Learned Materials terminal intel 1140 | -10/Mines | Build established: Scavenger-Mutant 1181 | -10/Mines | Joined a pair of Derelicts in attacking an 0b10 outpost 1214 | -10/Mines | Core integrity fell below 50% 1244 | -10/Mines | Lost 3 parts (1p2w) 1321 | -10/Mines | Learned location of Storage (-8) 1321 | -10/Mines | Discovered new exit (range 10) 1515 | -10/Mines | Build established: Mutant 1571 | -10/Mines | Discovered new exit (range 9) 1592 | -10/Mines | Assisted by bots powering up and referring to "LRC-V3" 1613 | -10/Mines | Entered Materials 1613 | -9/Materials | Accompanied by 5 allies 1613 | -9/Materials | Evolved 2 slots: Utility x2 1614 | -9/Materials | Loaded intel: 12 terminal locations 1618 | -9/Materials | Led the pair of lost Derelicts to an unsafe place 1834 | -9/Materials | Discovered new exit (range 16) 2170 | -9/Materials | Discovered new exit (range 14) 2571 | -9/Materials | Build established: Scavenger-Mutant 2686 | -9/Materials | Identified exit to Mines 2796 | -9/Materials | Entered Mines 2797 | -9/Mines | Assembled infested the area 2837 | -9/Mines | Core integrity fell below 50% 2865 | -9/Mines | Lost 5 parts (1p1n2u1w) 2868 | -9/Mines | Met a Derelict who couldn't figure out how to use a Trap Extractor 2956 | -9/Mines | Deemed a non-threat by the Exiles lab entrance 2956 | -9/Mines | Discovered new exit (range 5) 3126 | -9/Mines | Build established: Mutant 3282 | -9/Mines | Discovered new exit (range 8) 3295 | -9/Mines | Identified exit to Materials 3298 | -9/Mines | Entered Materials 3298 | -8/Materials | Evolved 2 slots: Utility x2 3365 | -8/Materials | Identified exit to Storage 3849 | -8/Materials | Discovered new exit (range 11) 3943 | -8/Materials | Garrison activated, responded to threat 3994 | -8/Materials | Core integrity fell below 50% 4011 | -8/Materials | Destroyed 9 combat bots 4022 | -8/Materials | Core integrity fell below 20% 4051 | -8/Materials | Destroyed by G-47 Trooper with Particle Gun Last Messages --------------- 04031_ U-05 Engineer builds a Wall. 04032_ K-01 Serf collects debris. 04033_ K-01 Serf destroyed. 04035_ U-05 Engineer lays Concrete. 04036_ K-01 Serf collects debris. 04036_ U-05 Engineer lays Concrete. 04037_ U-05 Engineer builds a Wall. 04037_ U-05 Engineer lays Concrete. 04039_ K-01 Serf collects debris. 04039_ U-05 Engineer lays Concrete. 04042_ Aluminum Leg melted. 04042_ G-47 Trooper destroyed. 04042_ U-05 Engineer lays Concrete. 04043_ K-01 Serf collects debris. 04044_ U-05 Engineer lays Concrete. 04044_ K-01 Serf collects debris. 04045_ U-05 Engineer lays Concrete. 04046_ K-01 Serf collects debris. 04047_ U-05 Engineer lays Concrete. 04050_ K-01 Serf collects debris. Map ----- +----------------------------------------------------+ | ?????????????????????????????????????????????????? | | ?????????????????????????????????????????????????? | | ?????????????????????????????????????????????????? | | ?????????????????????????????????????????????????? | | ?????????????????????????????????????????????????? | | ?????????????????????????????????????????????????? | | ?????????????????????????????????????????????????? | | ?????????????????????????????????????????????????? | | ?????????????????????????????????????????????????? | | ?????????????????????????????????????????????????? | | ?????????????????????????????????????????????????? | | ??????????????????#??????????????????????????????? | | ?????????????????T# ????????????????????????###### | | ?????????????????? ! ???????????????????????# | | ????????????? ?? ???????????????????????# | | ??????????????" ? ??????o?????????? | | ?????????????R" | ? ???????????????????######### | | ????????????" " *% # #####??????????????????????# | | ??????????? = # #??????????????????????# | | ??????????? ! ############################## | | ?????????? | | ?????????? =]! ==[k* k = | | ?????????? ]%] %!*=[* | | ???????????????#]]] ##g!! ###+######+######+# | | ??????????????# ?##%% ## #??????# | | ??????????????# T ????#@[!!||## #??????# """" | | ??????????????# ??????#[[!!||## #??????# """" | | ??????????????# ????????######### #??????# """" | | ????????????????????????????????# #??????# | | ????????????????????????????????# #??????# """" | | ????????????????????????????????# #??????# """" | | ????????????????????????????????# #????????"""" | | ????????????????????????????????# ########?? | | ????????????????????????????????####### #???## | | ??????????????????????????????????????# ! #????? | | ??????????????????????????????????????# #????? | | ???????????????????????##########?????# #????? | | ???????????????????????# #?????# #????? | | ???????????????????????# """ #?????# %=#????? | | ???????????????????????# """ #?????# = ###### | | ???????????????????????# """ #?????# # | | ???????????????????????# #?????# # | | ???????????????????????# ! #?????# # = | | ???????????????????????# #?????# # | | ???????????????????????# #?????# # | | ????????????##########?# "T" #?????###+### | | ????????????# ! ! #######+########## # | | ????????????# # # | | ????????????#""" # + | | ????????????#""" # ###### | +----------------------------------------------------+ Best States ------------- Heat Dissipation 42 Coolant Potential 65 Energy Generation 14 Energy Capacity 265 Matter Stores 300 Matter Capacity 300 Sight Range 16 Terrain Scan Density 10 Armor Coverage 150 Evasion (%) 40 Targeting Accuracy 6 Item Schematics ----------------- Hacking Suite | -8/Materials | Hacked Robot Schematics ------------------ None Fabricated ------------ Nothing Alien Tech Used ----------------- None Achievements -------------- None Challenges ------------ None Game ------ Seed SmallAntigravReconfigurator Manual? 0 Play Time 00:25:39 Cumulative 230.4 hours Start 2020.05.19 @ 23:10:59 End 2020.05.20 @ 23:31:40 Sessions 2 Manual Loads 0 Difficulty Rogue Special Mode None Game No. 366 Rogue 366 Adventurer 0 Explorer 0 Win Type - Total 5 Types 3/0/1/1/0/0/0 Lore% 78 Gallery% 79 Achievement% 60 Wizard Run 0 Options --------- ASCII 0 Keyboard 1 Movement Numpad Keybinds 0 Fullscreen 2 Font 18/X11Bold Map View 76x50 Tactical HUD 1 Map Filters NONE Filters NONE Steam 1 RUN: 1e17cbd7-0be1-4a13-a6a9-48b19f12646c